Cogmind - Beta 17 @@@ ROGUE MODE // 2026.07.03 @ 23:43:13 Player: Scarlet Result: Destroyed by Y-45 Defender with Heavy Assault Rifle Performance ------------- Evolutions (1) 500 Regions Visited (2) 400 Robots Destroyed (11) 55 Value Destroyed (358) 358 Prototype IDs (0) 0 Alien Tech Used (0) 0 Bonus (0) 0 TOTAL SCORE: 1313 Bonus ------- None Cogmind --------- Core Integrity 0/400 Matter 300/300 Energy 250/250 System Corruption 0% Temperature Cool (18) Movement Core (150) Ox2 Location -9/Materials Parts ------- > --- POWER (1) -------- Ion Engine > --- PROPULSION (2) --- (None) > --- UTILITY (4) ------ Power Shielding > --- WEAPON (2) ------- Small Laser > --- INVENTORY (5) ---- Sensor Array Peak State ------------ > --- POWER ------------ Light Ion Engine > --- PROPULSION ------- Aluminum Leg Aluminum Leg > --- UTILITY ---------- Improved Terrain Scanner > --- WEAPON ----------- Medium Laser Assault Rifle > --- INVENTORY -------- (None) [Rating: 8] Favorites ----------- Power Light Ion Engine Engine Light Ion Engine Propulsion Aluminum Leg Leg Aluminum Leg Utility Power Shielding Device Heat Sink Protection Power Shielding Weapon Medium Laser Energy Gun Medium Laser Ballistic Gun Assault Rifle Build | -11 -10 -9 ------- Run | Yrd Mat Mat Slots Evolved 2 | . . 2 Power . | . . . Propulsion . | . . . Utility 2 | . . 2 Weapon . | . . . Parts Attached 17 | 6 4 7 Power 2 | 1 . 1 Engine 2 | 1 . 1 Core . | . . . Reactor . | . . . Propulsion 4 | 2 1 1 Treads . | . . . Leg 4 | 2 1 1 Wheel . | . . . Hover . | . . . Flight . | . . . Utility 8 | 1 3 4 Device 5 | 1 2 2 Storage . | . . . Processor . | . . . Hackware . | . . . Protection 3 | . 1 2 Artifact . | . . . Weapon 3 | 2 . 1 Energy Gun 2 | 1 . 1 Energy Cannon . | . . . Ballistic Gun 1 | 1 . . Ballistic Cannon . | . . . Launcher . | . . . Special Weapon . | . . . Impact Weapon . | . . . Slashing Weapon . | . . . Piercing Weapon . | . . . Special Melee Weapon . | . . . Unidentified Prototypes . | . . . Parts Lost 10 | . 2 8 Power 1 | . . 1 Propulsion 3 | . 1 2 Utility 4 | . . 4 Weapon 2 | . 1 1 Highest Loss Streak 6 | . 2 6 To Critical Strikes . | . . . Average Backups . | . . 1 Power . | . . . Propulsion . | . . . Utility . | . . 1 Weapon . | . . . Tool/Special . | . . . Unused Backups . | . . . Power . | . . . Propulsion . | . . . Utility . | . . . Weapon . | . . . Tool/Special . | . . . Average Slot Usage (%) 70 | . 80 61 Engine 11 | . 14 10 Leg 16 | . 25 8 Device 8 | . 7 9 Protection 15 | . 5 24 Energy Gun 11 | . 14 9 Ballistic Gun 5 | . 12 . Peak Build Rating 8 | 8 8 8 Average Rating 6 | 4 6 6 On Entrance 4 | . 8 5 Avg Prop Armor Cover (%) . | . . . Naked Turns . | . . . Heaviest Build 15 | 8 9 15 Greatest Support 20 | 20 20 10 Greatest Overweight (x) 4 | . . 4 Average Overweight (x) . | . . 1 Largest Inventory Capacity 5 | 5 5 5 Average Capacity 5 | 5 5 5 Most Carried 1 | . 1 1 Average Carried . | . . 1 Final Capacity 5 | 5 5 5 Final Carried 1 | . 1 1 Class Distribution -------------------- 100% | Mutant Dominant Class ---------------- Mutant | -10/Materials Mutant | -9/Materials Resources | -11 -10 -9 ----------- Run | Yrd Mat Mat Matter Collected 461 | 286 140 35 Remotely . | . . . Salvage Created 470 | 61 180 229 Parts 19 | 2 6 11 Haulers Intercepted . | . . . Recyclers Shooed 2 | . 1 1 Parts Field Recycled . | . . . Retrieved Matter . | . . . Parts Self-Destructed . | . . . Prevented . | . . . Parts Restored . | . . . Kills | -11 -10 -9 ------- Run | Yrd Mat Mat Combat Hostiles Destroyed 10 | 1 4 5 Melee 2 | . . 2 Guns 8 | 1 4 3 Classes Destroyed 4 | 2 . 2 Tunneler 1 | 1 . . Swarmer 1 | . . 1 Grunt 7 | 1 4 2 Sentry 2 | . . 2 Best Kill Streak 3 | 2 2 3 Combat Bots Only 3 | 1 2 3 Max Kills in Single Turn 1 | 1 1 1 Gunslinging . | . . . Exploded . | . . . Melee 1 | . . 1 Uniques/NPCs Destroyed . | . . . Combat | -11 -10 -9 -------- Run | Yrd Mat Mat Hostile Shots Fired 167 | 10 41 116 Missed 44 | 1 7 36 Hits 123 | 9 34 80 Projectile 123 | 9 34 80 Critical Strikes 4 | . . 4 Damage Taken 1504 | 95 414 995 Core 514 | 32 72 410 Absorbed by Shields . | . . . Redirected to Shielding 32 | . 6 26 Core Remaining (%) 72 | 87 58 . Volleys Fired 84 | 16 25 43 Largest 2 | 2 2 1 Hottest 70 | 70 70 50 Shots Fired 119 | 28 48 43 Gun 119 | 28 48 43 Cannon . | . . . Launcher . | . . . Special . | . . . Kinetic 39 | 16 23 . Thermal 80 | 12 25 43 Explosive . | . . . Electromagnetic . | . . . Robot Hit Streak 11 | 4 5 11 Robot Miss Streak 3 | 3 3 2 Penetration Max . | . . . Secondary Targets . | . . . Shots Hit Robots 75 | 16 30 29 Core Hits 33 | 3 10 20 Critical Kills . | . . . Critical Parts Destroyed . | . . . Critical Strikes 6 | 1 . 5 Burn 6 | 1 . 5 Melee Attacks . | . . . Impact . | . . . Slashing . | . . . Piercing . | . . . Sneak Attacks . | . . . Combat Hostiles . | . . . Follow-up Attacks . | . . . Damage Inflicted 971 | 200 375 396 Guns 932 | 200 371 361 Cannons . | . . . Explosions . | . . . Melee . | . . . Ramming 39 | . 4 35 Kinetic 287 | 126 161 . Thermal 645 | 74 210 361 Explosive . | . . . Electromagnetic . | . . . Impact . | . . . Slashing . | . . . Piercing . | . . . Highest Corruption . | . . . Average Corruption . | . . . Corruption Purged . | . . . Corruption Blocked . | . . . Overload Shots . | . . . Overflow Damage . | . . . Projectiles . | . . . Explosions . | . . . Melee . | . . . Knockbacks . | . . . Impact . | . . . Kinetic . | . . . Secondary . | . . . Self-Inflicted Damage 12 | . . 12 Shots . | . . . Rammed 20 | . . 20 Targets Rammed 23 | . 3 20 Kicked 3 | . 3 . Crushed . | . . . Highest Temperature 156 | 42 156 24 Average Temperature 37 | 15 53 7 Received Heat Transfer 651 | 54 225 372 Siege Activations . | . . . Martial Activations . | . . . Shielding Activations . | . . . Robots Disrupted . | . . . Combat Hostiles . | . . . Robots Corrupted . | . . . Combat Hostiles . | . . . Parts Fried . | . . . Impact Corruptions . | . . . Robots Melted . | . . . Combat Hostiles . | . . . Parts Melted 7 | 2 1 4 Heat Transferred 2273 | 296 629 1348 Parts Sabotaged . | . . . Parts Stolen . | . . . Parts Stripped . | . . . Power Chain Reactions . | . . . Alert | -11 -10 -9 ------- Run | Yrd Mat Mat Maximum Alert Level . | . . . Low Security (%) 100 | 100 100 100 Level 1 . | . . . Level 2 . | . . . Level 3 . | . . . Level 4 . | . . . Level 5 . | . . . High Security . | . . . Max Security . | . . . Peak Influence 50 | 25 46 50 Initial 14 | . 3 14 Average 10 | 4 14 10 Influence Increases 295 | 25 146 124 Destroy 0b10 Robot/C 200 | 20 80 100 Destroy 0b10 Robot/NC 5 | 5 . . Destroy Leader 40 | . 20 20 Successful Hack 4 | . . 4 Destroy Structure 1 | . 1 . Lose Combat Pursuer 45 | . 45 . Influence Decreases 295 | 20 115 160 Entered New Map 24 | . 2 22 Time Decay 211 | 20 93 98 Lost Part 60 | . 20 40 Squads Dispatched 1 | . 1 . Investigation . | . . . Extermination . | . . . Reinforcement 1 | . 1 . Assault . | . . . Garrison . | . . . Intercept . | . . . Searches Triggered . | . . . Construction Impeded . | . . . Haulers Reinforced . | . . . Active Scanning Responses . | . . . Cargo Convoy Interrupts . | . . . Stealth | -11 -10 -9 --------- Run | Yrd Mat Mat Distress Signals 3 | . . 3 Communications Jammed . | . . . Distress Signals . | . . . Times Spotted 21 | 1 10 10 Peak Tracking Total 6 | 1 3 6 Tactical Retreats 2 | . 2 . Traps | -11 -10 -9 ------- Run | Yrd Mat Mat Traps Triggered . | . . . Indirectly . | . . . Trap Hack Attempts . | . . . Triggered . | . . . Disarmed . | . . . Reprogrammed 6 | . . 6 Reused . | . . . Traps Extracted . | . . . Installed . | . . . Triggered . | . . . Machines | -11 -10 -9 ---------- Run | Yrd Mat Mat Machines Disabled . | . . . Max in Single Turn . | . . . Machines Repaired . | . . . Machines Dismantled . | . . . Machines Sabotaged . | . . . Overloaded Fab Kills . | . . . Hacking | -11 -10 -9 --------- Run | Yrd Mat Mat Machines Accessed 1 | . . 1 Terminals 1 | . . 1 Fabricators . | . . . Repair Stations . | . . . Recycling Units . | . . . Scanalyzers . | . . . Garrison Access . | . . . Total Hacks 2 | . . 2 Successful 2 | . . 2 Failed . | . . . Catastrophic . | . . . Database Lockouts . | . . . Manual . | . . . Terminals 2 | . . 2 Fabricators . | . . . Repair Stations . | . . . Recycling Units . | . . . Scanalyzers . | . . . Garrison Access . | . . . Terminal Hacks 2 | . . 2 Reprogram Traps 1 | . . 1 Dispatch Records 1 | . . 1 Fabricator Hacks . | . . . Repair Station Hacks . | . . . Recycling Unit Hacks . | . . . Scanalyzer . | . . . Garrison Access Hacks . | . . . Unauthorized Hacks . | . . . Terminals . | . . . Fabricators . | . . . Repair Stations . | . . . Recycling Units . | . . . Scanalyzers . | . . . Garrison Access . | . . . Data Cores Recovered . | . . . Used . | . . . Hacking Detections 1 | . . 1 Full Trace Events . | . . . Feedback Events . | . . . Feedback Blocked . | . . . Robot Schematics Acquired . | . . . Robots Built . | . . . Authchips . | . . . Time . | . . . Total Robot Build Rating . | . . . Part Schematics Acquired . | . . . Parts Built . | . . . Authchips . | . . . Time . | . . . Total Part Build Rating . | . . . Part Studies Acquired . | . . . Parts Repaired . | . . . Time . | . . . Parts Recycled . | . . . Recycled Matter . | . . . Retrieved Matter . | . . . Retrieved Components . | . . . Parts Scanalyzed . | . . . Part Schematics Acquired . | . . . Parts Damaged . | . . . Bothacking | -11 -10 -9 ------------ Run | Yrd Mat Mat Used RIF Installer . | . . . Robots Hacked . | . . . Non-combat . | . . . Combat . | . . . Robot Hacks Applied . | . . . Relay Couplers Released . | . . . Fabnet Peak Effective % . | . . . Robots Rewired . | . . . Allies Hacked . | . . . Hacks Repelled . | . . . Allies | -11 -10 -9 -------- Run | Yrd Mat Mat Total Allies . | . . . Largest Group . | . . . Highest-Rated Group . | . . . Highest-Rated Ally . | . . . Total Orders . | . . . Ally Attacks . | . . . Total Damage . | . . . Kills . | . . . Allies Corrupted . | . . . Allies Melted . | . . . Intel | -11 -10 -9 ------- Run | Yrd Mat Mat Active Infowar (turns) 33 | 29 4 . Sensors 4 | . 4 . Terrain 29 | 29 . . Robot Analysis Total . | . . . Derelict Logs Recovered . | . . . Drone Launches . | . . . Drone Recoveries . | . . . Exploration | -11 -10 -9 ------------- Run | Yrd Mat Mat Turns Passed 800 | 153 301 346 Spaces Moved 391 | 94 177 120 Core 38 | 19 . 19 Treads . | . . . Legs 353 | 75 177 101 Wheels . | . . . Hover . | . . . Flight . | . . . Fastest Speed 50 | 50 120 50 Average Speed 135 | 105 120 182 Slowest Speed 250 | 120 120 250 Overloaded Moves . | . . . Propulsion Burnouts . | . . . Robots Hopped . | . . . Potential Cave-ins . | . . . Cave-ins Triggered . | . . . Exploration Rate (%) 16 | 7 29 14 Regions Visited 2 Branch Regions . Pre-discovered Areas . | . . . Known Exits Taken . | . . . Unknown Exits Taken 2 | 1 1 . Scrap Searched . | . . . Spaces Dug . | . . . Terrain Destroyed . | . . . Melee . | . . . Projectile . | . . . AOE . | . . . Terrain Rammed . | . . . Walls Destroyed . | . . . Machines Disabled . | . . . Actions | -11 -10 -9 --------- Run | Yrd Mat Mat Total 527 | 117 218 192 Wait . | . . . Move 389 | 93 176 120 Hop . | . . . Pick Up . | . . . Fast Attach 18 | 6 5 7 Attach 2 | 1 1 . Detach 7 | 1 5 1 Swap . | . . . Drop 4 | . 3 1 Fire 84 | 16 25 43 Melee . | . . . Ram 20 | . . 20 Kick 3 | . 3 . Crush . | . . . Escape Stasis . | . . . Rewire . | . . . Trap . | . . . Miscellaneous . | . . . Route ------- -11/Scrapyard -10/Materials -9/Materials History --------- Turn | Location | Event 2 | -11/Scrapyard | Met Revision 17 75 | -11/Scrapyard | Discovered new exit (range 8) 154 | -11/Scrapyard | Entered Materials 304 | -10/Materials | Build established: Mutant 450 | -10/Materials | Discovered new exit (range 3) 455 | -10/Materials | Entered another Materials area 455 | -9/Materials | Evolved 2 slots: Utility x2 755 | -9/Materials | Core integrity fell below 50% 790 | -9/Materials | Core integrity fell below 20% 801 | -9/Materials | Destroyed by Y-45 Defender with Heavy Assault Rifle Last Messages --------------- G-34 Mercenary destroyed. K-01 Serf collects debris. Acquired Ion Engine. K-01 Serf collects debris. R-06 Scavenger collects Heat Sink. K-01 Serf collects debris. Critical hit (Burn: +37). R-06 Scavenger collects Aluminum Leg. K-01 Serf collects debris. Acquired Heat Sink. Aluminum Leg destroyed. Acquired 2 matter. K-01 Serf collects debris. Acquired 33 matter. Slammed into Y-45 Defender. Critical hit (Burn: +37). Heat Sink destroyed. Slammed into Y-45 Defender. K-01 Serf destroyed. Slammed into Y-45 Defender. Map ----- +----------------------------------------------------+ | ?????????????????????????????????????????????????? | | ?????????????????????????????????????????????????? | | ?????????????????????????????????????????????????? | | ?????????????????????????????????????????????????? | | ?????????????????????????????????????????????????? | | ?????????????????????????????????????????????????? | | ?????????????????????????????????????????????????? | | ?????????????????????????????????????????????????? | | ?????????????????????????????????????????????????? | | ?????????????????????????????????????????????????? | | ???????????????????? ??????????????????????????? | | ???????????????????# ??????????????????????????? | | ???????????????????# ??????????????????????????? | | ???????????????????# #?????????????????????????? | | ???????????????????# #?????????????????????????? | | ???????????????????# #?????????????????????????? | | ???????????????????# #?????????????????????????? | | ???????????????????# #?????????????????????????? | | ???????????????????# #?????????????????????????? | | ???????????????????# ###########???????????????? | | ???????????????????# ## #???????????????? | | ???????????????????# ## #???????????????? | | ???????????????????# ## #???????????????? | | ?????????????####### ## #???????????????? | | ?????????????# g#%k #???????????????? | | ???????????? # %%/@Y % #???????????????? | | ???????????? # ^""" t !#%%%% #???????????????? | | ?????????????+ """ t### % % #???????????????? | | ?????????????# """ #?# #???????????????? | | ?????????????# ^""" #?##########???????????????? | | #######?????## """ #????????### ?????????????? | | # ####### #??????? ?????????????? | | # #?????? ????????????? | | # ####### ????????????? | | # #???????????????? | | # ####### #???????????????? | | ##% ##?????#### #???????????????? | | ?#=!%#?????????# ##??????????????? | | ?# #?????????# ???????????? | | ?+ #?????????# """" ???????????? | | ?# #???###???# """" ????????????? | | ?# #?? ^ ????# """" ???????????? | | ?# #?^"""????# ???????????? | | ## # ^"??????# "T" ???????????? | | # + ????????# ################## ????????????? | | # #^????????# ????????????????????????????????? | | + #^???????? ????????????????????????????????? | | # #^???????## ????????????????????????????????? | | # #?????????# ????????????????????????????????? | | # #?????????# ????????????????????????????????? | +----------------------------------------------------+ Best States ------------- Heat Dissipation 38 Energy Generation 10 Energy Capacity 250 Matter Stores 300 Matter Capacity 300 Sight Range 16 Terrain Scan Range 16 Terrain Scan Density 10 Armor Coverage 300 Power Shielding 33 Evasion (%) 55 Item Schematics ----------------- None Robot Schematics ------------------ None Fabricated ------------ Nothing Repaired ---------- Nothing Studied --------- None Alien Tech Used ----------------- None Achievements -------------- Crack Shot Fist Fight Uninvited Guest Challenges ------------ None Game ------ Seed MissileInsulatedSword Manual? 0 Play Time 00:18:15 Cumulative 1.1 hours Start 2026.07.03 @ 23:23:36 End 2026.07.03 @ 23:43:13 Sessions 1 Manual Loads 0 Difficulty Rogue Special Mode None Game No. 3 Rogue 3 Adventurer 0 Explorer 0 Win Type - Total 0 Types 0/0/0/0/0/0/0/0/0/0 Lore% 0 Gallery% 2 Achievement% 2 Wizard Run 0 Options --------- Layout 0 ASCII 0 Keyboard 1 Movement Arrows Keybinds 0 Fullscreen 1 Font 18/SmallcapsGlow Map View 76x50 Zoom Use 0% Tactical HUD 0 Map Filters NONE Filters NONE Steam 1 RUN: 3903f1d0-02e8-4b3f-b6cf-65ab79cb406f